fUSD/lending_fUSD_20240127
["ID","MTS","AMOUNT","RATE_DAILY","PERIOD"]
[312873644,1706386240973,-500.0,0.00022999,2]
[312873645,1706386240983,-500.0,0.00022999,2]
[312873646,1706386240995,-530.2906939,0.00022999,2]
[312873647,1706386241005,-500.0,0.00022999,2]
[312873648,1706386241014,-500.0,0.00022999,2]
[312873649,1706386241024,-500.0,0.00022999,2]
[312873650,1706386241034,-500.0,0.00022999,2]
[312873651,1706386241043,-500.0,0.00022999,2]
[312873652,1706386241053,-500.0,0.00022999,2]
[312873653,1706386241062,-500.0,0.00022999,2]
[312873655,1706386241073,-350.0,0.00022999,2]
[312873657,1706386241082,-4420.90117428,0.00023,2]
[312873659,1706386241092,-16633816.97735914,0.00023,2]
[312873661,1706386241101,-2586087.43052238,0.00023,2]
[312873663,1706386241110,-1463.79920878,0.00023,2]
[312873666,1706386241120,-499.99,0.00023,2]
[312873668,1706386241129,-496.85,0.00023003,2]
[312873669,1706386241139,-496.85,0.00023063,2]
[312873670,1706386241148,-238.32069741,0.00023096,2]
[312873671,1706386241251,-496.85,0.00023124,2]
[312873672,1706386241260,-330.0,0.0002313,2]
[312873673,1706386241269,-201.1,0.0002314,2]
[312873674,1706386241279,-3083.66523063,0.00023163,2]
[312873675,1706386241288,-496.85,0.00023184,2]
[312873676,1706386241297,-1568.58,0.00023414,2]
[312873677,1706386241306,-161.06,0.00023916,2]
[312873678,1706386241315,-500.0,0.00023998,2]
[312873679,1706386241325,-201.45283623,0.00024,2]
[312873680,1706386241334,-167.02,0.00024297,2]
[312873681,1706386241343,-150.58177433,0.000243,2]
[312873682,1706386241353,-646.27,0.00024359,2]
[312873683,1706386241361,-2519.89,0.00024384,2]
[312873684,1706386241371,-1725.59,0.00024384,2]
[312873685,1706386241380,-904.0,0.0002448,2]
[312873686,1706386241390,-201.1,0.0002451,2]
[312873687,1706386241399,-166.29,0.00024615,2]
[312873688,1706386241408,-374.91,0.00024658,2]
[312873689,1706386241418,-250.0,0.00024658,2]
[312873690,1706386241427,-550.0,0.00025,3]
[312873691,1706386241436,-418.27294352,0.00025,2]
[312873692,1706386241445,-303.55478187,0.00025,2]
[312873693,1706386241454,-1249.31192992,0.00025,2]
[312873694,1706386241464,-1906.6972547,0.00025,2]
[312873695,1706386241474,-167.43304946,0.00025,2]
[312873696,1706386241483,-625.867481,0.00025,2]
[312873697,1706386241492,-933.94016922,0.00025,2]
[312873698,1706386241502,-2580.69293854,0.00025,2]
[312873699,1706386241512,-1568.58,0.00025058,2]
[312873700,1706386241521,-374.91,0.0002509,2]
[312873701,1706386241530,-509.94256107,0.00025271,2]
[312873702,1706386241539,-374.91,0.00025523,2]
[312873703,1706386241549,-374.91,0.00025955,2]
[312873704,1706386241559,-150.0,0.00026079,2]
[312873705,1706386241568,-356.64347884,0.000262,2]
[312873706,1706386241577,-200.0,0.000262,2]
[312873707,1706386241586,-166.29,0.00026373,2]
[312873708,1706386241595,-374.91,0.00026388,2]
[312873709,1706386241604,-408.6227795,0.000264,2]
[312873710,1706386241613,-646.27,0.00026623,2]
[312873711,1706386241622,-1568.58,0.00026702,2]
[312873712,1706386241632,-374.91,0.0002682,2]
[312873713,1706386241642,-150.0,0.0002688,2]
[312873714,1706386241651,-150.0,0.0002688,2]
[312873715,1706386241661,-150.0,0.0002688,2]
[312873716,1706386241671,-150.0,0.0002688,2]
[312873717,1706386241682,-150.0,0.0002688,2]
[312873718,1706386241692,-150.0,0.0002688,2]
[312873719,1706386241701,-150.0,0.0002688,2]
[312873720,1706386241710,-150.0,0.0002688,2]
[312873721,1706386241720,-150.0,0.0002688,2]
[312873722,1706386241729,-150.0,0.0002688,2]
[312873723,1706386241739,-150.0,0.0002688,2]
[312873724,1706386241749,-150.0,0.0002688,2]
[312873725,1706386241758,-150.0,0.0002688,2]
[312873726,1706386241767,-150.0,0.0002688,2]
[312873727,1706386241776,-150.0,0.0002688,2]
[312873728,1706386241785,-150.0,0.0002688,2]
[312873729,1706386241796,-150.0,0.0002688,2]
[312873730,1706386241806,-150.0,0.0002688,2]
[312873731,1706386241818,-150.0,0.0002688,2]
[312873732,1706386241828,-150.0,0.0002688,2]
[312873733,1706386241840,-150.0,0.0002688,2]
[312873734,1706386241849,-150.0,0.0002688,2]
[312873735,1706386241858,-194.79012332,0.0002688,2]
[312873736,1706386241868,-150.0,0.0002688,2]
[312873737,1706386241878,-150.0,0.0002688,2]
[312873738,1706386241888,-150.0,0.0002688,2]
[312873739,1706386241897,-150.0,0.0002688,2]
[312873740,1706386241907,-150.0,0.0002688,2]
[312873741,1706386241916,-189.67083981,0.0002688,2]
[312873742,1706386241926,-600.0,0.00027,3]
[312873743,1706386241935,-416.68273717,0.00027,2]
[312873744,1706386241944,-184.31,0.00027117,2]
[312873745,1706386241954,-904.0,0.000272,2]
[312873746,1706386241963,-374.91,0.00027253,2]
[312873747,1706386241972,-338.53595614,0.00027397,5]
[312873748,1706386241983,-195.0,0.00027397,4]
[312873749,1706386241995,-208.88,0.00027397,2]
[312873750,1706386242004,-176.03482943,0.000275,2]
[312873751,1706386242013,-2204.94,0.00027671,2]
[312873752,1706386242022,-374.91,0.00027686,2]
[312873753,1706386242032,-165.98043855,0.00027834,2]
[312873754,1706386242042,-556.02380392,0.00028,2]
[312873755,1706386242051,-374.91,0.00028118,2]
[312873756,1706386242060,-166.29,0.00028131,2]
[312873757,1706386242070,-1568.58,0.00028346,2]
[312873758,1706386242080,-160.0,0.00028357,2]
[312873759,1706386242089,-374.91,0.00028551,2]
[312873760,1706386242098,-2204.94,0.00028695,2]
[312873761,1706386242107,-208.88,0.00028822,2]
[312873762,1706386242116,-646.27,0.00028887,2]
[312873763,1706386242125,-374.91,0.00028983,2]
[312873764,1706386242134,-161.06,0.0002899,2]
[312873765,1706386242144,-650.0,0.00029,3]
[312873766,1706386242153,-374.91,0.00029416,2]
[312873767,1706386242162,-256.81224917,0.000295,3]
[312873768,1706386242171,-2204.94,0.00029719,2]
[312873769,1706386242180,-176.08811858,0.000298,2]
[312873770,1706386242189,-374.91,0.00029848,2]
[312873771,1706386242198,-166.29,0.00029889,2]
[312873772,1706386242207,-904.0,0.00029919,2]
[312873773,1706386242217,-1568.58,0.0002999,2]
[312873774,1706386242226,-5416.51141317,0.0003,2]
[312873775,1706386242235,-155.0,0.0003,2]
[312873776,1706386242244,-1266.46545973,0.0003,2]
[312873777,1706386242253,-692.52631931,0.0003,2]
[312873778,1706386242262,-357.91955435,0.0003,2]
[312873779,1706386242271,-252.37950753,0.0003,4]
[312873780,1706386242280,-764.11347582,0.0003,4]
[312873781,1706386242290,-5564.77692806,0.0003,4]
[312873783,1706386242299,-582.7666979,0.0003,2]
[312873785,1706386242308,-3000.0,0.0003,2]
[312873788,1706386242317,-158.37,0.0003,2]
[312873790,1706386242326,-158.37,0.0003,2]
[312873792,1706386242336,-153.6,0.0003,2]
[312873793,1706386242345,-153.6,0.0003,2]
[312873794,1706386242355,-1000.0,0.0003,2]
[312873795,1706386242364,-3000.0,0.0003001,2]
[312873796,1706386242374,-3000.0,0.0003002,2]
[312873797,1706386242383,-3000.0,0.0003003,2]
[312873798,1706386242394,-3000.0,0.0003004,2]
[312873799,1706386242403,-3000.0,0.0003005,2]
[312873800,1706386242412,-3000.0,0.0003006,2]
[312873801,1706386242421,-3000.0,0.0003007,2]
[312873802,1706386242430,-4625.178612,0.0003008,2]
[312873803,1706386242438,-153.91,0.00030137,2]
[312873804,1706386242448,-374.91,0.00030281,2]
[312873806,1706386242457,-730.23,0.00030421,2]
[312873807,1706386242465,-374.91,0.00030714,2]
[312873808,1706386242479,-2204.94,0.00030743,2]
[312873809,1706386242523,-602.1965483,0.000308,2]
[312873810,1706386242532,-15941.5324694,0.000309,2]
[312873811,1706386242541,-7620.68184463,0.00031,2]
[312873812,1706386242550,-700.0,0.00031,3]
[312873813,1706386242559,-370.5389926,0.00031,2]
[312873814,1706386242567,-374.91,0.00031146,2]
[312873815,1706386242576,-646.27,0.00031151,2]
[312873816,1706386242585,-1732.0,0.000313,2]
[312873817,1706386242594,-7417.0,0.000313,2]
[312873818,1706386242603,-374.91,0.00031579,2]
[312873819,1706386242612,-180.0,0.00031644,2]
[312873820,1706386242621,-166.29,0.00031648,2]
[312873821,1706386242630,-153.91,0.00031703,2]
[312873822,1706386242639,-2204.94,0.00031767,2]
[312873823,1706386242648,-266009.448513,0.000318,3]
[312873824,1706386242657,-374.92675683,0.00032,2]
[312873825,1706386242666,-263.89358247,0.00032,2]
[312873826,1706386242675,-374.91,0.00032011,2]
[312873827,1706386242684,-374.91,0.00032444,2]
[312873828,1706386242693,-161.63385363,0.000325,2]
[312873829,1706386242702,-904.0,0.00032639,2]
[312873830,1706386242711,-165.98043855,0.00032767,2]
[312873831,1706386242721,-232147.66894691,0.000328,2]
[312873832,1706386242737,-8530.22419674,0.000328,2]
[312873833,1706386242746,-374.91,0.00032876,2]
[312873834,1706386242755,-152.71,0.00032877,15]
[312873835,1706386242764,-500.0,0.00032877,2]
[312873836,1706386242773,-186.52,0.00032877,2]
[312873837,1706386242782,-500.0,0.00032877,2]
[312873838,1706386242791,-750.0,0.00033,3]
[312873839,1706386242800,-905.45468879,0.00033,4]
[312873840,1706386242809,-2000.0,0.00033,5]
[312873841,1706386242818,-153.91,0.00033268,2]
[312873842,1706386242827,-166.29,0.00033406,2]
[312873843,1706386242837,-646.27,0.00033415,2]
[312873844,1706386242846,-560.11,0.000335,2]
[312873845,1706386242856,-560.11,0.000335,2]
[312873846,1706386242865,-560.11,0.000335,2]
[312873847,1706386242874,-560.11,0.000335,2]
[312873848,1706386242884,-560.11,0.000335,2]
[312873849,1706386242893,-560.11,0.000335,2]
[312873850,1706386242902,-560.11,0.000335,2]
[312873851,1706386242911,-560.11,0.000335,2]
[312873852,1706386242920,-560.11,0.000335,2]
[312873853,1706386242930,-560.11,0.000335,2]
[312873854,1706386242939,-560.11,0.000335,2]
[312873855,1706386242948,-560.11,0.000335,2]
[312873856,1706386242958,-560.11,0.000335,2]
[312873857,1706386242967,-560.11,0.000335,2]
[312873858,1706386242977,-560.11,0.000335,2]
[312873859,1706386242989,-560.11,0.000335,2]
[312873860,1706386242998,-560.11,0.000335,2]
[312873861,1706386243008,-560.11,0.000335,2]
[312873862,1706386243018,-560.11,0.000335,2]
[312873863,1706386243028,-560.11,0.000335,2]
[312873864,1706386243037,-744.43267165,0.00033697,2]
[312873865,1706386243046,-153.16,0.000337,2]
[312873866,1706386243056,-507.31895461,0.00034,4]
[312873867,1706386243065,-160.0,0.00034028,2]
[312873868,1706386243075,-153.91,0.00034834,2]
[312873869,1706386243084,-2750.85705516,0.000349,2]
[312873870,1706386243093,-2750.8570551,0.000349,2]
[312873871,1706386243103,-2750.8570551,0.000349,2]
[312873872,1706386243111,-2750.8570551,0.000349,2]
[312873873,1706386243120,-2750.8570551,0.000349,2]
[312873874,1706386243130,-2750.8570551,0.000349,2]
[312873875,1706386243139,-2750.8570551,0.000349,2]
[312873876,1706386243148,-2750.8570551,0.000349,2]
[312873877,1706386243158,-476.9332925,0.00034997,2]
[312873878,1706386243167,-15747.42472386,0.00035,7]
[312873879,1706386243176,-800.0,0.00035,3]
[312873880,1706386243186,-193776.20518575,0.00035,2]
[312873881,1706386243198,-46013.13659417,0.00035,2]
[312873882,1706386243301,-469.88988386,0.00022508,2]
[312873883,1706386243313,-438.52918257,0.00022508,2]
[312873884,1706386243542,-1744.31304505,0.00022508,2]
[312873885,1706386243551,-246.87096885,0.00022508,2]
[312873886,1706386243560,-200.41010791,0.00022508,2]
[312873887,1706386243570,-1617.04791244,0.00022871,2]
[312873888,1706386243579,-398.07147916,0.000229,2]
[312873889,1706386243588,-6465.63105374,0.00035,2]
[312873890,1706386243599,-1456.10001016,0.00035,2]
[312873891,1706386243610,-2376.77997176,0.00035,2]
[312873892,1706386243621,-624.1021534,0.00035,2]
[312873893,1706386246506,-242.06792932,0.00022507,2]
[312873894,1706386246515,-197.75109744,0.00022507,2]
[312873895,1706386246525,-276.65825472,0.00022507,2]
[312873896,1706386246538,-442.82396974,0.00022507,2]
[312873897,1706386246550,-3987.48048924,0.00022507,2]
[312873898,1706386246561,-3818.32200483,0.000229,2]
[312873899,1706386246574,-2359.87234024,0.000229,2]
[312873900,1706386246622,-1272.74670902,0.000229,2]
[312873901,1706386246634,-729.03054546,0.000229,2]
[312873902,1706386246650,-47375.02840045,0.000229,2]
[312873903,1706386246659,-220.99406538,0.00031799,4]
[312873904,1706386246668,-32945.79170956,0.00035,2]
[312873905,1706386246680,-307.17934042,0.00035,2]
[312873906,1706386246691,-4318.62217101,0.00035,2]
[312873907,1706386246701,-18330.78991837,0.00035,2]
[312873908,1706386246713,-163125.52196238,0.00035,2]
[312873909,1706386246724,-335.62,0.00035,2]
[312873910,1706386246736,-285.938,0.00035,2]
[312873911,1706386246749,-348.48262886,0.00035,2]
[312873912,1706386246761,-403.04925484,0.00035,2]
[312873913,1706386246790,49123.1788,0.00022406,2]
[312873914,1706386246810,-308.25,0.00022507,2]
[312873915,1706386247182,-943.07419028,0.00022507,2]
[312873916,1706386248966,155.24946774,0.00022506,2]
[312873938,1706386627991,697.6,0.000228,2]
[312873939,1706386688606,187.42948827,0.00022799,2]
[312873942,1706387250099,-155.03614362,0.00022877,2]
[312873954,1706387431743,-340.66,0.00022897,2]
[312873955,1706387431853,-78.21172383,0.00022897,2]
[312873957,1706387431863,-300.78827617,0.00022898,2]
[312873960,1706387431876,-501.636,0.00022898,2]
[312873962,1706387437579,-968.58002994,0.00022898,2]
[312873963,1706387437589,-156.00443668,0.00022899,2]
[312873964,1706387437598,-449.22331084,0.00022899,2]
[312873965,1706387437635,-58.40821168,0.00022899,2]
[312873966,1706387437645,-333.49163329,0.00022899,2]
[312873967,1706387437655,-428.71667088,0.00022998,5]
[312873968,1706387437667,-300.0,0.00022999,2]
[312873969,1706387437678,-300.0,0.00022999,2]
[312873970,1706387437689,-187.45,0.00024658,2]
[312873971,1706387437700,-200.0,0.00025,2]
[312873972,1706387437711,-550.0,0.00025,3]
[312873973,1706387437721,-600.0,0.00027,3]
[312873974,1706387437730,-650.0,0.00029,3]
[312873975,1706387437741,-491.75,0.00029601,2]
[312873976,1706387437751,-1973.38140147,0.0003,2]
[312873977,1706387437761,-3000.0,0.0003,2]
[312873978,1706387437771,-9657.29212585,0.0003,2]
[312873979,1706387437781,-105.08921511,0.00030999,2]
[312873980,1706387437793,-49.91078489,0.00030999,2]
[312873981,1706387437803,-700.0,0.00031,3]
[312873982,1706387437813,-499.99,0.00031496,2]
[312873983,1706387437822,-5.77133493,0.00031497,7]
[312873984,1706387437837,-149.22866507,0.00031497,7]
[312873985,1706387437847,-363.3390023,0.00031497,2]
[312873986,1706387437861,-1076.54155544,0.00031497,2]
[312873987,1706387437872,-192.56944226,0.00031497,2]
[312873988,1706387437881,-162.51,0.000315,2]
[312873989,1706387437891,-83.39055774,0.00031527,2]
[312873990,1706387437904,-916.60944226,0.00031527,2]
[312873992,1706387437914,-391.83,0.00031572,2]
[312873994,1706387437925,-507.58,0.00031587,2]
[312873995,1706387437935,-809.77,0.00031639,2]
[312873998,1706387437945,-150.0,0.00031741,2]
[312874000,1706387437954,-453.21134134,0.00031798,4]
[312874001,1706387437964,-555.60906119,0.00031798,4]
[312874003,1706387437974,-491.75,0.00031865,2]
[312874004,1706387437982,-150.0,0.0003191,2]
[312874005,1706387437991,-250.0,0.00031926,2]
[312874006,1706387438000,-166.29,0.00031989,2]
[312874007,1706387438009,-250.0,0.00031989,2]
[312874008,1706387438018,-200.0,0.00032004,2]
[312874009,1706387438027,-1193.67824528,0.00032015,2]
[312874010,1706387438046,-22706.32175472,0.00032015,2]
[312874011,1706387438056,-2000.0,0.00032204,2]
[312874012,1706387438066,-250.0,0.00032204,2]
[312874013,1706387438075,-8115.43083731,0.00032279,4]
[312874014,1706387438086,-383.20087159,0.00032279,2]
[312874015,1706387438096,-187.42948826,0.00032306,2]
[312874016,1706387438105,-158.37,0.000324,2]
[312874017,1706387438115,-158.37,0.000324,2]
[312874018,1706387438125,-153.61,0.000324,2]
[312874019,1706387438135,-1437.99,0.0003266,2]
[312874020,1706387438145,-221.07088425,0.0003266,14]
[312874021,1706387438154,-166.35,0.0003279,2]
[312874022,1706387438164,-186.52,0.00032877,2]
[312874023,1706387438173,-500.0,0.00032877,2]
[312874024,1706387438182,-187.45,0.00032877,2]
[312874025,1706387438192,-500.0,0.00032877,2]
[312874026,1706387438203,-166.32,0.00032877,15]
[312874027,1706387438213,-766.05966435,0.00032965,2]
[312874028,1706387438225,-1609.38033565,0.00032965,2]
[312874029,1706387438234,-905.45468879,0.00033,4]
[312874030,1706387438243,-2000.0,0.00033,5]
[312874031,1706387438254,-750.0,0.00033,3]
[312874032,1706387438263,-4702.54793935,0.00033499,4]
[312874033,1706387438273,-560.11,0.000335,2]
[312874034,1706387438283,-560.11,0.000335,2]
[312874035,1706387438292,-560.11,0.000335,2]
[312874036,1706387438302,-560.11,0.000335,2]
[312874037,1706387438312,-560.11,0.000335,2]
[312874038,1706387438322,-560.11,0.000335,2]
[312874039,1706387438332,-560.11,0.000335,2]
[312874040,1706387438341,-560.11,0.000335,2]
[312874041,1706387438350,-560.11,0.000335,2]
[312874042,1706387438359,-560.11,0.000335,2]
[312874043,1706387438373,-560.11,0.000335,2]
[312874044,1706387438383,-560.11,0.000335,2]
[312874045,1706387438392,-560.11,0.000335,2]
[312874046,1706387438401,-560.11,0.000335,2]
[312874047,1706387438410,-560.11,0.000335,2]
[312874048,1706387438419,-560.11,0.000335,2]
[312874049,1706387438429,-560.11,0.000335,2]
[312874050,1706387438438,-560.11,0.000335,2]
[312874051,1706387438447,-560.11,0.000335,2]
[312874052,1706387438457,-560.11,0.000335,2]
[312874053,1706387438467,-688.92857397,0.00033947,4]
[312874054,1706387438476,-744.43267165,0.00033978,2]
[312874055,1706387438485,-507.31895461,0.00034128,4]
[312874056,1706387438494,-491.75,0.00034129,2]
[312874057,1706387438503,-153.16,0.000344,2]
[312874058,1706387438513,-150.0,0.00034576,2]
[312874059,1706387438523,-1110.49865,0.0003465,2]
[312874060,1706387438533,-317.00826863,0.00034697,7]
[312874061,1706387438542,-161.34,0.00034787,2]
[312874062,1706387438552,-238.46664625,0.00034794,2]
[312874063,1706387438561,-429.01752209,0.00034795,2]
[312874064,1706387438571,-2868.9973,0.00034797,2]
[312874065,1706387438581,-87290.93887123,0.00034797,2]
[312874066,1706387438594,-13441.21662406,0.00034797,2]
[312874067,1706387438613,-645.88539279,0.00034797,2]
[312874068,1706387438627,-2197.4250838,0.00034797,2]
[312874069,1706387438640,-126617.10242512,0.00034797,2]
[312874070,1706387438653,-264147.12150805,0.00034797,2]
[312874071,1706387438664,-63606.01253809,0.00034797,2]
[312874075,1706387440757,-1382.20000003,0.00034797,2]
[312874076,1706387440810,-323.02359802,0.00034797,2]
[312874107,1706387442718,-762.13920058,0.00034797,2]
[312874113,1706387445815,-421.01527906,0.00034796,4]
[312874114,1706387445824,-3105.34353201,0.00034797,2]
[312874115,1706387445836,-27321.86970522,0.00034797,2]
[312874116,1706387446030,-80895.521821,0.00034797,2]
[312874117,1706387446041,-251.5928,0.00034797,2]
[312874118,1706387446051,-1000.0,0.00034897,2]
[312874119,1706387446060,-100000.0,0.00034897,2]
[312874120,1706387446069,-2806.0813,0.00034897,2]
[312874121,1706387446078,-2750.85705516,0.000349,2]
[312874122,1706387446087,-300.0,0.000349,12]
[312874123,1706387446096,-209.0,0.000349,2]
[312874124,1706387446106,-35613.2868229,0.0003498,7]
[312874125,1706387446115,-319.72828497,0.00034986,10]
[312874126,1706387446124,-160.38314835,0.00034986,10]
[312874127,1706387446133,-91577.0232589,0.00034987,7]
[312874128,1706387446143,-161.34,0.00034987,2]
[312874129,1706387446152,-5087.61240327,0.00034988,7]
[312874130,1706387446161,-8711.64240793,0.00034989,7]
[312874131,1706387554450,6292.9645,0.00022798,2]
[312874133,1706387686935,166.8239594,0.00022777,2]
[312874140,1706388045447,-316.33036582,0.00038789,30]
[312874141,1706388045476,-319.65201277,0.0004,120]
[312874142,1706388045501,-3000.0,0.000418,32]
[312874143,1706388045527,-3000.0,0.0004181,32]
[312874144,1706388045551,-5512.542004,0.0004182,32]
[312874145,1706388045576,-316.33036582,0.00041908,60]
[312874146,1706388045605,-2921.55140385,0.00042,35]
[312874147,1706388045774,-86401.16528484,0.00043,30]
[312874148,1706388045798,-802.82707846,0.00044,120]
[312874149,1706388045822,-1626.1024124,0.00045,60]
[312874150,1706388045845,-1979.53,0.0004527,120]
[312874151,1706388045867,-150.0,0.00045542,30]
[312874152,1706388045890,-162.3988194,0.0004718,33]
[312874153,1706388045915,-1000.0,0.000498,120]
[312874154,1706388045937,-316.33036582,0.00049899,90]
[312874155,1706388045958,-316.3303658,0.00049899,90]
[312874156,1706388045980,-500.0,0.00049999,120]
[312874157,1706388046001,-500.0,0.00049999,120]
[312874158,1706388046024,-500.0,0.00049999,120]
[312874159,1706388046045,-500.0,0.00049999,120]
[312874160,1706388046065,-500.0,0.00049999,120]
[312874161,1706388046087,-500.0,0.00049999,120]
[312874162,1706388046108,-244.93575242,0.00049999,120]
[312874163,1706388046130,-500.0,0.00049999,120]
[312874164,1706388046151,-303.80829428,0.00049999,120]
[312874165,1706388046173,-500.0,0.00049999,120]
[312874166,1706388046194,-500.0,0.00049999,120]
[312874167,1706388046218,-500.0,0.00049999,120]
[312874168,1706388046240,-500.0,0.00049999,120]
[312874169,1706388046264,-500.0,0.00049999,120]
[312874170,1706388046296,-500.0,0.00049999,120]
[312874171,1706388046321,-500.0,0.00049999,120]
[312874172,1706388046343,-500.0,0.00049999,120]
[312874173,1706388046365,-500.0,0.00049999,120]
[312874174,1706388046388,-452.17159784,0.00049999,120]
[312874175,1706388046410,-500.0,0.00049999,120]
[312874176,1706388046431,-347.46358971,0.00049999,120]
[312874177,1706388046454,-500.0,0.00049999,120]
[312874178,1706388046477,-500.0,0.00049999,120]
[312874179,1706388046500,-500.0,0.00049999,120]
[312874180,1706388046522,-500.0,0.00049999,120]
[312874181,1706388046544,-500.0,0.00049999,120]
[312874182,1706388046566,-500.0,0.00049999,120]
[312874183,1706388046588,-500.0,0.00049999,120]
[312874184,1706388046612,-539.7561332,0.00049999,120]
[312874185,1706388046634,-500.0,0.00049999,120]
[312874186,1706388046658,-500.0,0.00049999,120]
[312874187,1706388046679,-500.0,0.00049999,120]
[312874188,1706388046701,-500.0,0.00049999,120]
[312874189,1706388046723,-500.0,0.00049999,120]
[312874190,1706388046749,-500.0,0.00049999,120]
[312874191,1706388046771,-500.0,0.00049999,120]
[312874192,1706388046793,-500.0,0.00049999,120]
[312874193,1706388046816,-500.0,0.00049999,120]
[312874194,1706388046837,-500.0,0.00049999,120]
[312874195,1706388046859,-500.0,0.00049999,120]
[312874196,1706388046882,-500.0,0.00049999,120]
[312874197,1706388046903,-500.0,0.00049999,120]
[312874198,1706388046925,-350.0,0.00049999,120]
[312874199,1706388046946,-433.36104572,0.00049999,120]
[312874200,1706388046967,-500.0,0.00049999,120]
[312874201,1706388046989,-500.0,0.00049999,120]
[312874202,1706388047010,-500.0,0.00049999,120]
[312874203,1706388047032,-207.84749264,0.00049999,120]
[312874204,1706388047053,-500.0,0.00049999,120]
[312874205,1706388047074,-500.0,0.00049999,120]
[312874206,1706388047095,-533.92741624,0.00049999,120]
[312874207,1706388047117,-500.0,0.00049999,120]
[312874208,1706388047139,-500.0,0.00049999,120]
[312874209,1706388047161,-500.0,0.00049999,120]
[312874210,1706388047183,-500.0,0.00049999,120]
[312874211,1706388047309,-500.0,0.00049999,120]
[312874212,1706388047331,-500.0,0.00049999,120]
[312874213,1706388047353,-500.0,0.00049999,120]
[312874214,1706388047375,-500.0,0.00049999,120]
[312874215,1706388047397,-500.0,0.00049999,120]
[312874216,1706388047419,-500.0,0.00049999,120]
[312874217,1706388047441,-500.0,0.00049999,120]
[312874218,1706388047463,-500.0,0.00049999,120]
[312874219,1706388047485,-471.10419512,0.00049999,120]
[312874220,1706388047507,-500.0,0.00049999,120]
[312874221,1706388047530,-500.0,0.00049999,120]
[312874222,1706388047558,-359.84056428,0.00049999,120]
[312874223,1706388047580,-350.0,0.00049999,120]
[312874224,1706388047605,-500.0,0.00049999,120]
[312874225,1706388047632,-500.0,0.00049999,120]
[312874226,1706388047653,-600.2040542,0.00049999,120]
[312874227,1706388047676,-489231.0728184,0.0005,60]
[312874228,1706388047697,-359.7710561,0.0005,120]
[312874229,1706388047718,-56199.24170805,0.0005,120]
[312874230,1706388047741,-783.34,0.0005,120]
[312874231,1706388047763,-232.0,0.0005,30]
[312874232,1706388047784,-1990.0,0.0005,30]
[312874233,1706388047805,-2902.047267,0.000505,30]
[312874234,1706388047827,-155.0,0.000507,60]
[312874235,1706388047851,-200.0,0.00050987,32]
[312874236,1706388047876,-200.0,0.00050987,30]
[312874237,1706388047899,-218.122336,0.00051338,30]
[312874238,1706388047920,-217.466617,0.00051338,30]
[312874239,1706388047941,-920.0,0.000514,30]
[312874240,1706388047962,-837.0,0.000514,30]
[312874241,1706388047987,-162.3988194,0.0005142,50]
[312874242,1706388048013,-166.32,0.00051557,120]
[312874243,1706388048038,-155.0,0.000518,60]
[312874244,1706388048062,-260.23308656,0.00051954,78]
[312874245,1706388048086,-203.0,0.0005196,31]
[312874246,1706388048110,-200.0,0.00051987,31]
[312874247,1706388048133,-200.0,0.00051987,35]